fUSD/lending_fUSD_20260417
["ID","MTS","AMOUNT","RATE_DAILY","PERIOD"]
[420626922,1776367848935,-841.698831,0.000103,2]
[420626923,1776367848947,-2430.59892602,0.000103,2]
[420626924,1776367848958,-1529.06704,0.000103,2]
[420626925,1776367848971,-715.2085,0.000103,2]
[420626926,1776367848982,-1141.551202,0.000103,2]
[420626927,1776367848994,-855.34030862,0.000103,2]
[420626928,1776367849006,-11739.86978487,0.000103,2]
[420626929,1776367849046,-6106.53102283,0.000103,2]
[420626931,1776367943539,-266.0,8.985e-05,2]
[420626932,1776367943562,-150.0,8.985e-05,2]
[420626933,1776367943583,-501.12204549,9.033e-05,2]
[420626934,1776367943605,-500.0,9.033e-05,2]
[420626935,1776367943625,-500.0,9.033e-05,2]
[420626936,1776367943648,-500.0,9.033e-05,2]
[420626937,1776367943669,-500.0,9.033e-05,2]
[420626938,1776367943694,-28082.87795451,9.05e-05,2]
[420626940,1776368091030,-263.0,8.76e-05,2]
[420626941,1776368091062,-150.0,8.76e-05,2]
[420626942,1776368091083,-263.0,8.95e-05,2]
[420626943,1776368091101,-150.0,8.95e-05,2]
[420626944,1776368091119,-51174.0,8.95e-05,2]
[420626945,1776368119610,500.0,8.301e-05,2]
[420626946,1776368121210,500.0,8.301e-05,2]
[420626947,1776368122411,500.0,8.301e-05,2]
[420626948,1776368124922,500.0,8.301e-05,2]
[420626949,1776368125263,500.0,8.301e-05,2]
[420626950,1776368126352,500.0,8.301e-05,2]
[420626951,1776368127848,500.0,8.301e-05,2]
[420626952,1776368129108,500.0,8.301e-05,2]
[420626953,1776368130269,500.0,8.301e-05,2]
[420626954,1776368132019,500.0,8.301e-05,2]
[420626955,1776368133211,500.0,8.301e-05,2]
[420626956,1776368136643,500.0,8.301e-05,2]
[420626957,1776368151553,320.0,8.305e-05,2]
[420626959,1776368475255,4839.07,8.139e-05,2]
[420626960,1776368719983,150.0,8.038e-05,2]
[420626961,1776368720036,150.0,8.262e-05,2]
[420626962,1776368720322,150.0,8.038e-05,2]
[420626963,1776368720439,150.0,8.336e-05,2]
[420626964,1776368721493,150.0,8.038e-05,2]
[420626965,1776368722932,150.0,8.038e-05,2]
[420626966,1776368723000,150.0,8.262e-05,2]
[420626967,1776368727531,150.0,8.038e-05,2]
[420626968,1776368727682,150.0,8.038e-05,2]
[420626969,1776368727746,150.0,8.166e-05,2]
[420626970,1776368727822,150.0,8.294e-05,2]
[420626971,1776368738560,150.0,8.038e-05,2]
[420626972,1776368738629,150.0,8.336e-05,2]
[420626973,1776368739152,150.0,8.038e-05,2]
[420626974,1776368739468,150.0,8.038e-05,2]
[420626975,1776368739537,150.0,8.262e-05,2]
[420626976,1776368747179,1925.42,7.947e-05,2]
[420626977,1776368772094,150.0,8.22e-05,2]
[420626978,1776368839053,1153.47,8.219e-05,2]
[420626979,1776368842336,150.0,8.22e-05,2]
[420626980,1776368868168,11413.21,7.93e-05,2]
[420626981,1776368911220,150.0,8.22e-05,2]
[420626983,1776368948129,-259.0,8.421e-05,2]
[420626984,1776368948151,-150.0,8.421e-05,2]
[420626985,1776368948172,-180.28532132,8.427e-05,2]
[420626986,1776368948194,-150.0,8.433e-05,2]
[420626987,1776368948215,-150.0,8.485e-05,2]
[420626988,1776368948237,-150.0,8.485e-05,2]
[420626989,1776368948258,-150.0,8.485e-05,2]
[420626990,1776368948279,-150.0,8.485e-05,2]
[420626991,1776368948300,-150.0,8.485e-05,2]
[420626992,1776368948321,-74.9974345,8.516e-05,2]
[420626993,1776368971443,1500.0,7.932e-05,2]
[420626994,1776368977090,150.0,8.349e-05,2]
[420627009,1776369032099,-91.6625655,8.516e-05,2]
[420627010,1776369032108,-150.0,8.549e-05,2]
[420627011,1776369032117,-150.0,8.634e-05,2]
[420627012,1776369032127,-150.0,8.634e-05,2]
[420627013,1776369032136,-275.55054349,8.634e-05,2]
[420627014,1776369032145,-150.0,8.667e-05,2]
[420627015,1776369032155,-150.0,8.676e-05,2]
[420627016,1776369032164,-150.0,8.708e-05,2]
[420627017,1776369032173,-150.0,8.708e-05,2]
[420627018,1776369032183,-150.0,8.708e-05,2]
[420627019,1776369032192,-275.55054348,8.742e-05,2]
[420627020,1776369032204,-300.0,8.749e-05,2]
[420627021,1776369032213,-1200.0,8.749e-05,2]
[420627022,1776369032223,-300.0,8.749e-05,2]
[420627023,1776369032235,-57885.40363131,8.75e-05,2]
[420627024,1776369032255,-351.5299975,8.75e-05,2]
[420627025,1776369032268,-5772.50541974,8.75e-05,2]
[420627026,1776369032281,-364.05795145,8.75e-05,2]
[420627027,1776369032291,-569.0,8.756e-05,2]
[420627028,1776369032301,-152.0,8.794e-05,7]
[420627029,1776369032311,-150.0,8.8e-05,2]
[420627030,1776369032321,-150.0,8.804e-05,2]
[420627031,1776369032330,-150.0,8.815e-05,2]
[420627032,1776369032340,-771.0,8.832e-05,2]
[420627033,1776369032349,-150.0,8.849e-05,2]
[420627034,1776369032359,-300.0,8.849e-05,2]
[420627035,1776369032369,-275.55054348,8.85e-05,2]
[420627036,1776369032378,-13408.52363841,8.85e-05,2]
[420627037,1776369032390,-37815.88376159,8.85e-05,2]
[420627038,1776369032400,-2500.0,8.85e-05,2]
[420627039,1776369032410,-3138.0,8.932e-05,2]
[420627040,1776369032421,-150.0,8.932e-05,2]
[420627041,1776369032432,-150.0,8.932e-05,2]
[420627043,1776369032442,-150.0,8.932e-05,2]
[420627045,1776369032451,-150.0,8.932e-05,2]
[420627047,1776369032461,-150.0,8.932e-05,2]
[420627049,1776369032470,-290.56888095,8.932e-05,2]
[420627051,1776369032480,-150.0,8.932e-05,2]
[420627053,1776369032489,-150.0,8.932e-05,2]
[420627055,1776369032500,-150.0,8.932e-05,2]
[420627057,1776369032510,-500.0,8.933e-05,2]
[420627059,1776369032519,-500.0,8.933e-05,2]
[420627061,1776369032529,-500.0,8.933e-05,2]
[420627062,1776369032539,-500.0,8.933e-05,2]
[420627063,1776369032548,-500.21459105,8.933e-05,2]
[420627064,1776369032557,-2000.0,8.943e-05,2]
[420627067,1776369032567,-283.35,8.949e-05,2]
[420627070,1776369032576,-1986.791,8.949e-05,2]
[420627071,1776369032585,-166.047,8.949e-05,2]
[420627072,1776369032595,-1000.0,8.949e-05,2]
[420627073,1776369032605,-500.0,8.949e-05,2]
[420627074,1776369032614,-500.0,8.949e-05,2]
[420627075,1776369032624,-500.0,8.949e-05,2]
[420627076,1776369032634,-500.0,8.949e-05,2]
[420627077,1776369032643,-500.0,8.949e-05,2]
[420627078,1776369032653,-286.45963308,8.949e-05,2]
[420627079,1776369032665,-359.92742092,8.949e-05,2]
[420627080,1776369032675,-761.76038096,8.949e-05,2]
[420627081,1776369032684,-761.76038096,8.949e-05,2]
[420627082,1776369032694,-761.76038096,8.949e-05,2]
[420627083,1776369032703,-761.76038096,8.949e-05,2]
[420627084,1776369032713,-761.76038096,8.949e-05,2]
[420627085,1776369032722,-761.76038096,8.949e-05,2]
[420627086,1776369032730,-761.76038096,8.949e-05,2]
[420627087,1776369032739,-761.76038096,8.949e-05,2]
[420627088,1776369032749,-761.76038096,8.949e-05,2]
[420627089,1776369032759,-761.76038096,8.949e-05,2]
[420627090,1776369032768,-761.76038096,8.949e-05,2]
[420627091,1776369032777,-761.76038096,8.949e-05,2]
[420627092,1776369032787,-761.76038096,8.949e-05,2]
[420627093,1776369032797,-761.76038096,8.949e-05,2]
[420627094,1776369032806,-761.76038096,8.949e-05,2]
[420627095,1776369032815,-761.76038096,8.949e-05,2]
[420627096,1776369032825,-761.76038096,8.949e-05,2]
[420627097,1776369032834,-761.76038096,8.949e-05,2]
[420627098,1776369032843,-761.76038096,8.949e-05,2]
[420627099,1776369032852,-761.76038096,8.949e-05,2]
[420627100,1776369032862,-761.76038096,8.949e-05,2]
[420627101,1776369032871,-761.76038096,8.949e-05,2]
[420627102,1776369032880,-761.76038096,8.949e-05,2]
[420627103,1776369032889,-761.76038096,8.949e-05,2]
[420627104,1776369032899,-761.76038096,8.949e-05,2]
[420627105,1776369032908,-761.76038096,8.949e-05,2]
[420627106,1776369032917,-761.76038096,8.949e-05,2]
[420627107,1776369032927,-761.76038096,8.949e-05,2]
[420627108,1776369032937,-761.76038096,8.949e-05,2]
[420627109,1776369032946,-761.76038096,8.949e-05,2]
[420627110,1776369032955,-761.76038096,8.949e-05,2]
[420627111,1776369032964,-761.76038096,8.949e-05,2]
[420627112,1776369032973,-761.76038096,8.949e-05,2]
[420627113,1776369032982,-761.76038096,8.949e-05,2]
[420627114,1776369032992,-761.76038096,8.949e-05,2]
[420627115,1776369033002,-761.76038096,8.949e-05,2]
[420627116,1776369033011,-761.76038096,8.949e-05,2]
[420627117,1776369033021,-761.76038096,8.949e-05,2]
[420627118,1776369033031,-761.76038096,8.949e-05,2]
[420627119,1776369033040,-761.76038096,8.949e-05,2]
[420627120,1776369033051,-761.76038096,8.949e-05,2]
[420627121,1776369033061,-761.76038096,8.949e-05,2]
[420627122,1776369033071,-761.76038096,8.949e-05,2]
[420627123,1776369033080,-761.76038096,8.949e-05,2]
[420627124,1776369033090,-761.76038096,8.949e-05,2]
[420627125,1776369033099,-761.76038096,8.949e-05,2]
[420627126,1776369033108,-761.76038096,8.949e-05,2]
[420627127,1776369033118,-761.76038096,8.949e-05,2]
[420627128,1776369033128,-761.76038096,8.949e-05,2]
[420627129,1776369033137,-761.76038096,8.949e-05,2]
[420627130,1776369033148,-761.76038096,8.949e-05,2]
[420627131,1776369033157,-761.76038096,8.949e-05,2]
[420627132,1776369033167,-761.76038096,8.949e-05,2]
[420627133,1776369033177,-761.76038096,8.949e-05,2]
[420627134,1776369033186,-761.76038096,8.949e-05,2]
[420627135,1776369033196,-761.76038096,8.949e-05,2]
[420627136,1776369033205,-761.76038096,8.949e-05,2]
[420627137,1776369033214,-761.76038096,8.949e-05,2]
[420627138,1776369033224,-337.32495295,8.949e-05,2]
[420627139,1776369033233,-754.14277714,8.949e-05,2]
[420627140,1776369033242,-754.14277714,8.949e-05,2]
[420627141,1776369033252,-754.14277714,8.949e-05,2]
[420627142,1776369033262,-754.14277714,8.949e-05,2]
[420627143,1776369033271,-754.14277714,8.949e-05,2]
[420627144,1776369033281,-754.14277714,8.949e-05,2]
[420627145,1776369033291,-754.14277714,8.949e-05,2]
[420627146,1776369033300,-754.14277714,8.949e-05,2]
[420627147,1776369033309,-90.25617352,8.949e-05,2]
[420627148,1776369033336,-663.88660362,8.949e-05,2]
[420627149,1776369033345,-754.14277714,8.949e-05,2]
[420627150,1776369033355,-754.14277714,8.949e-05,2]
[420627151,1776369033364,-704.95854235,8.949e-05,2]
[420627152,1776369033375,-49.18423479,8.949e-05,2]
[420627153,1776369033385,-390.81576521,8.949e-05,2]
[420627154,1776369033416,-363.32701193,8.949e-05,2]
[420627155,1776369033427,-754.14277714,8.949e-05,2]
[420627156,1776369033436,-754.14277714,8.949e-05,2]
[420627157,1776369033446,-754.14277714,8.949e-05,2]
[420627158,1776369033455,-754.14277714,8.949e-05,2]
[420627159,1776369033464,-754.14277714,8.949e-05,2]
[420627160,1776369033473,-754.14277714,8.949e-05,2]
[420627161,1776369033483,-754.14277714,8.949e-05,2]
[420627162,1776369033492,-754.14277714,8.949e-05,2]
[420627163,1776369033502,-754.14277714,8.949e-05,2]
[420627164,1776369033511,-754.14277714,8.949e-05,2]
[420627165,1776369033520,-754.14277714,8.949e-05,2]
[420627166,1776369033529,-754.14277714,8.949e-05,2]
[420627167,1776369033539,-754.14277714,8.949e-05,2]
[420627168,1776369033548,-754.14277714,8.949e-05,2]
[420627169,1776369033557,-754.14277714,8.949e-05,2]
[420627170,1776369033567,-754.14277714,8.949e-05,2]
[420627171,1776369033577,-754.14277714,8.949e-05,2]
[420627172,1776369033587,-500.0,8.949e-05,2]
[420627173,1776369033596,-500.0,8.949e-05,2]
[420627174,1776369033606,-244.85168337,8.949e-05,2]
[420627175,1776369033616,-500.0,8.949e-05,2]
[420627176,1776369033625,-500.0,8.949e-05,2]
[420627177,1776369033635,-458.74638839,8.949e-05,2]
[420627178,1776369033645,-500.0,8.949e-05,2]
[420627179,1776369033654,-500.0,8.949e-05,2]
[420627180,1776369033663,-500.0,8.949e-05,2]
[420627181,1776369033673,-500.0,8.949e-05,2]
[420627182,1776369033682,-214.00493381,8.949e-05,2]
[420627183,1776369033691,-500.0,8.949e-05,2]
[420627184,1776369033700,-500.0,8.949e-05,2]
[420627185,1776369033711,-511.32652774,8.949e-05,2]
[420627186,1776369033723,-500.0,8.949e-05,2]
[420627187,1776369033733,-500.0,8.949e-05,2]
[420627188,1776369033743,-268.8819063,8.949e-05,2]
[420627189,1776369033752,-285.98407295,8.949e-05,2]
[420627190,1776369033762,-500.0,8.949e-05,2]
[420627191,1776369033771,-500.0,8.949e-05,2]
[420627192,1776369033780,-150.0,8.95e-05,2]
[420627193,1776369033790,-172.0,8.95e-05,3]
[420627194,1776369033799,-150.0,8.95e-05,2]
[420627195,1776369033810,-3327.73390313,8.95e-05,2]
[420627196,1776369033826,-317.81348446,8.95e-05,2]
[420627197,1776369033838,-19055.432878,8.95e-05,2]
[420627198,1776369033856,-603.84235597,8.95e-05,2]
[420627199,1776369033867,-999.36072972,8.95e-05,2]
[420627200,1776369033878,-4431.10331,8.95e-05,2]
[420627201,1776369033896,-478.50807902,8.95e-05,2]
[420627202,1776369033907,-19689.57241436,8.95e-05,2]
[420627237,1776369039450,-4810.94195086,8.466e-05,2]
[420627239,1776369039467,-804.57804914,8.466e-05,2]
[420627240,1776369039477,-55482.71699731,8.95e-05,2]
[420627242,1776369039558,-4934.206548,8.95e-05,2]
[420627243,1776369039613,-1513.16049576,8.95e-05,2]
[420627244,1776369039625,-9046.62959513,8.95e-05,2]
[420627245,1776369039637,-731.12494902,8.95e-05,2]
[420627246,1776369039648,-946.544202,8.95e-05,2]
[420627247,1776369039675,-20955.83799274,8.95e-05,2]
[420627248,1776369039756,-64.22225168,8.95e-05,2]
[420627249,1776369039775,-796.55986639,8.95e-05,2]
[420627250,1776369039787,-3596.22805072,8.95e-05,2]
[420627251,1776369039802,-60886.70291951,8.95e-05,2]
[420627252,1776369039815,-38721.68449229,8.95e-05,2]
[420627253,1776369039829,-453.7396978,8.95e-05,2]
[420627254,1776369039884,-8771.8,8.95e-05,2]
[420627296,1776369044893,-4051.58577808,8.95e-05,2]
[420627297,1776369044954,-500.0,8.95e-05,2]
[420627298,1776369044967,-5326.51044459,8.95e-05,2]
[420627299,1776369044981,-11889.24176195,8.95e-05,2]
[420627300,1776369045000,-1142.2,8.95e-05,2]
[420627301,1776369045013,-341.04,8.95e-05,2]
[420627305,1776369046066,-8960.813727,8.95e-05,2]
[420627306,1776369046175,-385.86598933,8.95e-05,2]
[420627307,1776369046188,-39101.34391089,8.95e-05,2]
[420627308,1776369046199,-65000.0,8.95e-05,2]
[420627309,1776369046211,-108065.07946358,8.95e-05,2]
[420627310,1776369046222,-292137.097,8.95e-05,2]
[420627311,1776369046246,-80941.49792089,8.95e-05,2]
[420627312,1776369046285,-21762.28695369,8.95e-05,2]
[420627313,1776369046298,-68936.80203367,8.95e-05,2]
[420627314,1776369046309,-133023.31916212,8.95e-05,2]
[420627315,1776369046320,-494.61771879,8.95e-05,2]
[420627316,1776369046816,-11872.70076535,8.95e-05,2]
[420627317,1776369046828,-11909.45718096,8.95e-05,2]
[420627318,1776369046872,-1012.13922078,8.95e-05,2]
[420627319,1776369046885,-5700.45216036,8.95e-05,2]
[420627320,1776369046897,-972.98655423,8.95e-05,2]
[420627321,1776369046929,-3594.06331873,8.95e-05,2]
[420627322,1776369046985,-6852.92971649,8.95e-05,2]
[420627323,1776369046998,-881.77499999,8.95e-05,2]
[420627324,1776369047010,-4534.85779296,8.95e-05,2]
[420627325,1776369047041,-651.98542784,8.95e-05,2]
[420627326,1776369047150,-141991.48515578,8.95e-05,2]
[420627329,1776369047161,-16337.6022456,8.95e-05,2]
[420627331,1776369047173,-36884.8876836,8.95e-05,2]
[420627332,1776369047184,-504.28224,8.95e-05,2]
[420627333,1776369047206,-1819.1209591,8.95e-05,2]
[420627345,1776369047380,-11395.48051998,8.95e-05,2]
[420627346,1776369047391,-5511.18109999,8.95e-05,2]
[420627347,1776369047436,-7752.16507649,8.95e-05,2]
[420627348,1776369047449,-390.204,8.95e-05,2]
[420627349,1776369047461,-1135.96567531,8.95e-05,2]
[420627350,1776369047494,-651.98732006,8.95e-05,2]
[420627351,1776369047506,-4188.05172322,8.95e-05,2]
[420627352,1776369047518,-454.35,8.95e-05,2]
[420627353,1776369047530,-2316.90688967,8.95e-05,2]
[420627354,1776369047551,-83231.823612,8.95e-05,2]
[420627355,1776369047562,-1802.32655586,8.95e-05,2]
[420627356,1776369047574,-475.80353924,8.95e-05,2]
[420627375,1776369050607,168.89,6.85e-05,2]
[420627376,1776369088477,265.52,8.2e-05,2]
[420627377,1776369088945,531.04,8.301e-05,2]
[420627378,1776369104617,152.0,8.955e-05,30]
[420627379,1776369106428,150.0,8.377e-05,2]
[420627380,1776369128161,172.0,8.377e-05,3]
[420627381,1776369179212,200.0,8.11e-05,2]
[420627382,1776369189477,150.0,8.227e-05,2]
[420627383,1776369192301,165.0,8.11e-05,3]
[420627384,1776369227824,166.01,8.219e-05,2]
[420627385,1776369246969,165.0,8.219e-05,3]
[420627386,1776369256301,150.0,8.227e-05,2]
[420627387,1776369256915,15245.1,8.081e-05,2]
[420627388,1776369288394,2000.0,8.219e-05,2]
[420627389,1776369334579,150.0,8.226e-05,2]
[420627390,1776369402025,152.0,8.826e-05,30]
[420627391,1776369477741,150.0,8.226e-05,2]
[420627392,1776369521504,150.0,8.226e-05,2]
[420627393,1776369590535,150.0,8.226e-05,2]
[420627394,1776369656917,150.0,8.225e-05,2]
[420627398,1776369702394,248.78,8.2e-05,2]
[420627399,1776369702734,497.57,8.258e-05,2]
[420627400,1776369703320,746.36,8.316e-05,2]
[420627401,1776369703737,995.15,8.375e-05,2]
[420627402,1776369706347,152.0,8.789e-05,30]
[420627403,1776369723150,150.0,8.224e-05,2]
[420627404,1776369831681,818.6,7.792e-05,2]
[420627405,1776369850019,150.0,8.224e-05,2]
[420627406,1776369895101,165.86,8.316e-05,2]
[420627407,1776369895450,221.15,8.375e-05,2]
[420627408,1776369968719,6879.55,7.8e-05,2]
[420627409,1776370001302,152.0,8.573e-05,30]
[420627410,1776370015107,-300.0,8.401e-05,2]
[420627411,1776370015131,-128.593897,8.401e-05,2]
[420627412,1776370046875,249.17,7.848e-05,2]
[420627413,1776370065576,1600.0,7.998e-05,2]
[420627414,1776370094026,151.0,8.219e-05,3]
[420627415,1776370094880,163.0,8.219e-05,3]
[420627416,1776370100746,4976.82,7.825e-05,2]
[420627417,1776370147678,151.0,8.219e-05,3]
[420627418,1776370148079,-300.0,8.401e-05,2]
[420627419,1776370148108,-250.0,8.402e-05,2]
[420627420,1776370148132,-500.0,8.402e-05,2]
[420627421,1776370148156,-500.0,8.402e-05,2]
[420627422,1776370148181,-500.0,8.402e-05,2]
[420627423,1776370148205,-224.43006575,8.402e-05,2]
[420627424,1776370148229,-273.42562063,8.402e-05,2]
[420627425,1776370148254,-202.73,8.404e-05,2]
[420627426,1776370148279,-442.36838562,8.433e-05,2]
[420627427,1776370185868,150.0,0.00011233,120]
[420627428,1776370210742,152.0,8.219e-05,3]
[420627429,1776370212731,176.0,8.219e-05,3]
[420627438,1776370232328,-740.01793856,8.433e-05,2]
[420627439,1776370232435,-61.55367582,8.433e-05,2]
[420627440,1776370232446,-276.44,8.433e-05,2]
[420627441,1776370232456,-1492.73,8.491e-05,2]
[420627442,1776370232465,-331.72,8.491e-05,2]
[420627443,1776370232475,-500.0,8.523e-05,2]
[420627444,1776370232485,-500.0,8.523e-05,2]
[420627445,1776370232495,-500.0,8.523e-05,2]
[420627446,1776370232505,-500.0,8.523e-05,2]
[420627447,1776370232515,-500.0,8.523e-05,2]
[420627448,1776370232524,-500.0,8.523e-05,2]
[420627449,1776370232534,-500.0,8.523e-05,2]
[420627450,1776370232544,-300.0,8.548e-05,2]
[420627451,1776370232554,-1200.0,8.548e-05,2]
[420627452,1776370232564,-1741.52,8.549e-05,2]
[420627453,1776370232574,-387.01,8.549e-05,2]
[420627454,1776370232584,-150.0,8.549e-05,2]
[420627455,1776370232593,-350700.29599831,8.549e-05,2]
[420627456,1776370232605,-39306.42577875,8.549e-05,2]
[420627457,1776370232617,-6560.64178403,8.549e-05,2]
[420627458,1776370232628,-30786.54380103,8.549e-05,2]
[420627460,1776370232652,-3760.9,8.549e-05,2]
[420627462,1776370232663,-343.32323318,8.549e-05,2]
[420627465,1776370232685,-760.98862681,8.549e-05,2]
[420627726,1776370238624,-61888.59724974,8.549e-05,2]
[420627727,1776370238635,-42033.93229744,8.549e-05,2]
[420627728,1776370238646,-453.7396978,8.549e-05,2]
[420627746,1776370241305,-190505.3014832,8.549e-05,2]
[420627768,1776370241985,-608.959328,8.549e-05,2]
[420627769,1776370242008,-54209.5,8.549e-05,2]
[420627770,1776370242019,-3693.67181135,8.549e-05,2]
[420627792,1776370246645,-500.0,8.548e-05,2]
[420627793,1776370246656,-355.39898303,8.548e-05,2]
[420627794,1776370246666,-396.12322014,8.548e-05,2]
[420627795,1776370246675,-500.0,8.548e-05,2]
[420627796,1776370246685,-500.0,8.548e-05,2]
[420627797,1776370246695,-500.0,8.548e-05,2]
[420627798,1776370246705,-500.0,8.548e-05,2]
[420627799,1776370246715,-500.0,8.548e-05,2]
[420627800,1776370246724,-500.0,8.548e-05,2]
[420627801,1776370246734,-645.49304507,8.548e-05,2]
[420627802,1776370246744,-500.0,8.548e-05,2]
[420627803,1776370246754,-466.87006436,8.548e-05,2]
[420627804,1776370246764,-7243.09988022,8.549e-05,2]
[420627805,1776370246818,-57363.9155459,8.549e-05,2]
[420627806,1776370246842,-426.18042414,8.549e-05,2]
[420627807,1776370246937,-353.50290038,8.548e-05,2]
[420627808,1776370246947,-500.0,8.548e-05,2]
[420627809,1776370246958,-229.80933738,8.548e-05,2]
[420627810,1776370246968,-246.0005482,8.548e-05,2]
[420627811,1776370246978,-9979.19629137,8.549e-05,2]
[420627812,1776370246995,-3973.95170521,8.549e-05,2]
[420627813,1776370247006,-450.40932277,8.549e-05,2]
[420627932,1776370247895,-19906.95950315,8.549e-05,2]
[420627933,1776370247950,-2667.88970174,8.549e-05,2]
[420627942,1776370291542,150.0,8.248e-05,2]
[420627943,1776370302764,152.0,8.553e-05,30]
[420627944,1776370358075,150.0,8.247e-05,2]
[420627945,1776370387860,157.0,8.247e-05,3]
[420627946,1776370448553,157.0,8.247e-05,3]
[420627947,1776370505640,157.0,8.247e-05,3]
[420627948,1776370556271,2000.0,7.677e-05,2]
[420627949,1776370598679,152.0,8.553e-05,30]
[420627950,1776370625493,158.0,8.247e-05,3]
[420627951,1776370692396,10766.57,7.655e-05,2]
[420627954,1776370749430,158.0,8.247e-05,3]
[420627955,1776370810954,158.0,8.247e-05,3]
[420627956,1776370903468,152.0,8.476e-05,30]
[420627958,1776371040734,2188.4522,8.333e-05,2]
[420627959,1776371040976,166.66,7.779e-05,2]
[420627960,1776371198098,-205.07975284,8.421e-05,2]
[420627961,1776371201397,152.0,8.483e-05,30]
[420627962,1776371260395,1045.02,8.219e-05,2]
[420627963,1776371291720,206.08,7.763e-05,2]
[420627964,1776371431581,-794.92024716,8.421e-05,2]
[420627965,1776371431591,-226.64730284,8.424e-05,2]
[420627966,1776371431601,-3273.88272916,8.427e-05,2]
[420627967,1776371431687,-1726.11727084,8.427e-05,2]
[420627968,1776371431696,-300.0,8.432e-05,2]
[420627969,1776371431712,-7.58535658,8.433e-05,2]
[420627971,1776371431856,-992.41464342,8.433e-05,2]
[420627972,1776371431866,-395.85642293,8.433e-05,2]
[420627973,1776371431876,-1200.0,8.433e-05,2]
[420627974,1776371431886,-1000.0,8.434e-05,2]
[420627975,1776371431896,-377.0,8.439e-05,2]
[420627977,1776371431907,-300.0,8.445e-05,2]
[420627979,1776371431917,-377.0,8.446e-05,2]
[420627981,1776371431927,-376.0,8.446e-05,2]
[420627983,1776371431938,-2153.92876142,8.447e-05,2]
[420627985,1776371431948,-1000.0,8.473e-05,2]
[420627986,1776371431958,-397.0,8.473e-05,2]
[420627987,1776371431967,-377.0,8.478e-05,2]
[420627988,1776371431978,-152.0,8.48e-05,7]
[420627989,1776371431988,-416.0,8.49e-05,2]
[420627991,1776371431998,-429.0,8.509e-05,2]
[420627993,1776371432008,-415.32194628,8.514e-05,2]
[420627994,1776371432018,-160.06188623,8.523e-05,2]
[420627995,1776371432028,-377.0,8.526e-05,2]
[420627996,1776371432038,-377.0,8.531e-05,2]
[420627997,1776371432048,-377.0,8.534e-05,2]
[420627998,1776371432058,-377.0,8.539e-05,2]
[420627999,1776371432068,-377.0,8.539e-05,2]
[420628000,1776371432078,-377.0,8.544e-05,2]
[420628001,1776371432089,-405.0,8.545e-05,2]
[420628002,1776371432104,-151.0,8.546e-05,2]
[420628003,1776371432114,-151.0,8.546e-05,2]
[420628004,1776371432124,-377.0,8.547e-05,2]
[420628005,1776371432134,-377.0,8.547e-05,2]
[420628006,1776371432145,-151.0,8.547e-05,2]
[420628007,1776371432155,-302.0,8.548e-05,2]
[420628008,1776371432165,-433.0,8.548e-05,2]
[420628009,1776371432175,-319.52,8.548e-05,2]
[420628010,1776371432186,-150.0,8.548e-05,2]
[420628011,1776371432196,-500.0,8.549e-05,2]
[420628012,1776371432206,-150.0,8.552e-05,2]
[420628013,1776371432216,-377.0,8.554e-05,2]
[420628014,1776371432226,-1000.0,8.557e-05,2]
[420628015,1776371432236,-153.63277467,8.57e-05,2]
[420628016,1776371432246,-377.0,8.582e-05,2]
[420628017,1776371432255,-377.0,8.592e-05,2]
[420628018,1776371432265,-427.0,8.593e-05,2]
[420628019,1776371432275,-377.0,8.601e-05,2]
[420628020,1776371432285,-300.0,8.603e-05,2]
[420628021,1776371432295,-377.0,8.607e-05,2]
[420628022,1776371432304,-1000.0,8.61e-05,2]
[420628023,1776371432314,-395.0,8.611e-05,2]
[420628024,1776371432323,-1000.0,8.613e-05,2]
[420628025,1776371432334,-377.0,8.618e-05,2]
[420628026,1776371432343,-500.0,8.625e-05,2]
[420628027,1776371432353,-1238.0,8.625e-05,2]
[420628028,1776371432363,-323.0,8.625e-05,2]
[420628029,1776371432373,-377.0,8.626e-05,2]
[420628030,1776371432383,-377.0,8.628e-05,2]
[420628031,1776371432393,-500.0,8.63e-05,2]
[420628032,1776371432403,-377.0,8.632e-05,2]
[420628033,1776371432412,-377.0,8.632e-05,2]
[420628034,1776371432422,-377.0,8.634e-05,2]
[420628035,1776371432431,-377.0,8.635e-05,2]
[420628036,1776371432441,-377.0,8.635e-05,2]